bitfinex/quotes_SOLUSD_20250830
["timestamp","ask_amount","ask_price","bid_price","bid_amount"]
[1756541355178,0.2,205.4,205.39,49.9167853]
[1756541356585,5.48663709,205.4,205.39,38.44]
[1756541356894,0.87,205.4,205.39,38.44]
[1756541357097,5.48663709,205.4,205.39,38.44]
[1756541357301,0.87,205.4,205.39,43.30878621]
[1756541357505,0.2,205.4,205.39,43.30878621]
[1756541357689,0.2,205.4,205.39,47.9254233]
[1756541358403,0.2,205.4,205.39,50.5966913]
[1756541360597,0.2,205.4,205.39,49.8766913]
[1756541361010,0.2,205.4,205.39,50.5966913]
[1756541361712,0.2,205.4,205.39,49.8766913]
[1756541363028,5.48663709,205.4,205.39,38.44]
[1756541363408,0.87,205.4,205.39,38.44]
[1756541363807,5.48663709,205.4,205.39,38.44]
[1756541364016,0.2,205.4,205.39,43.30878621]
[1756541364419,0.87,205.4,205.39,4.86878621]
[1756541364613,0.87,205.4,205.39,43.36878621]
[1756541366010,5.48663709,205.4,205.39,38.5]
[1756541367731,0.2,205.4,205.39,38.5]
[1756541368231,0.2,205.4,205.39,43.36878621]
[1756541369029,0.87,205.4,205.39,43.36878621]
[1756541369323,0.2,205.4,205.39,43.36878621]
[1756541369530,0.87,205.4,205.39,43.36878621]
[1756541370033,5.48663709,205.4,205.39,38.5]
[1756541370739,5.48663709,205.4,205.37,4.86903975]
[1756541371031,0.69,205.39,205.38,38.46]
[1756541371619,0.69,205.39,205.38,43.32902327]
[1756541373221,5.30663709,205.39,205.35,9.54636089]
[1756541373407,5.30663709,205.38,205.36,38.44]
[1756541373609,0.69,205.37,205.36,38.44]
[1756541374021,0.2,205.4,205.36,38.44]
[1756541374022,0.2,205.4,205.36,48.59597257]
[1756541374438,0.2,205.4,205.36,53.21260957]
[1756541375432,0.69,205.39,205.36,43.30933548]
[1756541375636,4.81663709,205.4,205.36,43.30933548]
[1756541375637,0.69,205.38,205.36,43.30933548]
[1756541375928,0.69,205.37,205.36,4.86933548]
[1756541376117,0.69,205.37,205.36,43.30933548]
[1756541376319,0.2,205.4,205.36,43.30933548]
[1756541376510,0.69,205.39,205.36,47.92597257]
[1756541376710,0.2,205.4,205.36,47.92597257]
[1756541376902,0.2,205.4,205.36,9.48597257]
[1756541377106,0.2,205.4,205.37,38.46]
[1756541377335,0.69,205.39,205.37,38.46]
[1756541377534,0.69,205.39,205.38,4.86902327]
[1756541379527,0.2,205.4,205.38,4.86902327]
[1756541379729,0.2,205.4,205.39,38.44]
[1756541379921,0.89,205.4,205.39,38.44]
[1756541380931,0.89,205.4,205.39,43.30878621]
[1756541383236,0.2,205.4,205.39,43.30878621]
[1756541384342,0.2,205.4,205.39,43.22878621]
[1756541386324,0.89,205.4,205.36,9.92327409]
[1756541386523,4.61663709,205.38,205.37,38.34]
[1756541386839,0.69,205.38,205.37,38.34]
[1756541388140,5.50663709,205.4,205.37,43.20926035]
[1756541388341,3.2782304,205.39,205.37,43.20926035]
[1756541388527,3.4782304,205.4,205.37,43.87926035]
[1756541389149,3.4782304,205.4,205.37,38.34]
[1756541389344,8.58486749,205.39,205.37,38.34]
[1756541389533,5.30663709,205.39,205.37,38.34]
[1756541390350,3.28083482,205.38,205.37,43.20918337]
[1756541390648,0.06,205.38,205.37,43.20918337]
[1756541391254,3.34083482,205.38,205.37,43.20918337]
[1756541391644,0.06,205.38,205.37,43.20918337]
[1756541391955,3.34083482,205.38,205.37,43.20918337]
[1756541392147,0.06,205.38,205.37,43.20918337]
[1756541392331,3.34083482,205.38,205.37,43.20918337]
[1756541392646,0.06,205.38,205.37,43.20918337]
[1756541392949,4.03083482,205.38,205.37,38.34]
[1756541393331,8.64747191,205.38,205.37,38.34]
[1756541394245,3.34083482,205.38,205.37,43.20926035]
[1756541395052,8.64747191,205.38,205.33,5.506637]
[1756541395241,4.61663709,205.36,205.34,38.32]
[1756541395443,3.28083482,205.35,205.34,38.32]
[1756541396353,7.89747191,205.35,205.34,38.32]
[1756541396646,8.58747191,205.35,205.3,4.87071442]
[1756541396850,4.61663709,205.32,205.3,4.87071442]
[1756541397035,4.61663709,205.32,205.28,0.67]
[1756541397036,3.28083482,205.31,205.28,4.87119053]
[1756541397238,3.28083482,205.31,205.29,38.3]
[1756541397434,7.89747191,205.31,205.29,38.3]
[1756541397754,5.30663709,205.32,205.29,38.3]
[1756541397946,3.28279629,205.31,205.29,38.3]
[1756541398324,3.28279629,205.31,205.29,38.97]
[1756541398736,3.28279629,205.33,205.3,4.8709206]
[1756541398937,3.28279629,205.32,205.31,38.3]
[1756541399137,7.89943338,205.33,205.31,38.3]
[1756541399326,3.28279629,205.32,205.31,38.3]
[1756541399550,3.28279629,205.32,205.31,38.97]
[1756541399736,3.28279629,205.33,205.31,38.97]
[1756541399935,3.28279629,205.34,205.32,5.28663709]
[1756541400246,4.61663709,205.34,205.3,14.641646]
[1756541400563,4.61663709,205.34,205.31,38.28]
[1756541400757,131.6,205.37,205.32,5.28663709]
[1756541401054,131.6,205.37,205.25,26.0]
[1756541401055,4.61663709,205.33,205.25,26.0]
[1756541401260,3.27937743,205.32,205.26,43.61663709]
[1756541401448,3.27937743,205.33,205.28,4.61663709]
[1756541401642,5.27663709,205.32,205.29,38.32]
[1756541402258,4.61663709,205.32,205.29,38.32]
[1756541402573,4.61663709,205.33,205.29,38.32]
[1756541402868,3.27741664,205.32,205.29,38.32]
[1756541403067,3.27741664,205.32,205.29,47.80778893]
[1756541403366,0.06,205.38,205.31,4.61663709]
[1756541403533,0.06,205.38,205.37,4.61663709]
[1756541403731,0.06,205.38,205.37,42.97663709]
[1756541404081,0.06,205.38,205.37,43.65663709]
[1756541404632,0.06,205.38,205.27,24.35757335]
[1756541404833,4.61663709,205.33,205.29,0.68]
[1756541405051,4.61663709,205.34,205.3,0.68]
[1756541405269,0.66,205.37,205.31,39.1]
[1756541405556,0.06,205.38,205.35,4.61663709]
[1756541405863,0.06,205.38,205.36,38.48]
[1756541406753,0.06,205.38,205.37,4.86926035]
[1756541407466,1e-08,205.38,205.37,10.16589744]
[1756541409343,4.09501429,205.52,205.43,20.0]
[1756541409546,8.05808683,205.58,205.4,13.59559401]
[1756541409547,4.61663709,205.58,205.53,26.0]
[1756541409737,4.61663709,205.58,205.4,4.61663709]
[1756541409738,4.61663709,205.55,205.54,3.62574111]
[1756541410051,5.27663709,205.55,205.54,8.99779911]
[1756541410249,5.27663709,205.55,205.54,3.62574111]
[1756541410449,5.27663709,205.55,205.52,16.72]
[1756541410754,4.61663709,205.55,205.52,16.72]
[1756541410955,4.61663709,205.55,205.52,21.58558366]
[1756541411267,4.61663709,205.56,205.52,21.58558366]
[1756541411560,0.2,205.57,205.53,0.68]
[1756541411865,4.61663709,205.54,205.52,38.76]
[1756541412045,4.61663709,205.55,205.52,38.76]
[1756541412256,4.61663709,205.55,205.53,3.27578256]
[1756541412444,4.61663709,205.55,205.54,3.27578256]
[1756541412644,5.27663709,205.55,205.54,3.27578256]
[1756541413179,5.27663709,205.55,205.52,38.76]
[1756541413344,4.61663709,205.53,205.52,38.76]
[1756541413958,4.61663709,205.53,205.52,43.376638]
[1756541414579,4.61663709,205.53,205.5,38.74]
[1756541414580,5.27663709,205.53,205.5,38.74]
[1756541414749,4.61663709,205.51,205.5,38.74]
[1756541414949,4.61663709,205.52,205.5,38.74]
[1756541415970,4.61663709,205.51,205.49,4.616637]
[1756541416166,0.66,205.5,205.43,38.72]
[1756541416371,4.61663709,205.47,205.43,53.351648]
[1756541416558,4.61663709,205.46,205.43,53.351648]
[1756541416758,0.66,205.5,205.44,0.68]
[1756541416960,4.61663709,205.47,205.44,0.68]
[1756541417160,4.61663709,205.48,205.43,53.351648]
[1756541417385,4.61663709,205.48,205.43,38.72]
[1756541417565,4.61663709,205.48,205.43,44.2678088]
[1756541418386,4.61663709,205.47,205.43,39.4]
[1756541418599,5.526248,205.5,205.42,38.72]
[1756541418600,5.27663709,205.46,205.42,38.72]
[1756541418795,4.866248,205.5,205.42,38.72]
[1756541418796,4.61663709,205.44,205.42,38.72]
[1756541418999,4.61663709,205.43,205.41,14.633075]
[1756541419299,4.61663709,205.43,205.4,38.72]
[1756541419474,4.61663709,205.43,205.41,3.03365619]
[1756541419676,4.61663709,205.43,205.4,38.72]
[1756541420068,4.61663709,205.42,205.37,20.18497734]
[1756541420402,4.61663709,205.4,205.36,43.5894734]
[1756541420563,0.66,205.44,205.38,4.61663709]
[1756541420762,0.66,205.44,205.39,3.03517074]
[1756541420763,4.61663709,205.43,205.39,3.03517074]
[1756541420974,5.27663709,205.43,205.38,4.61663709]
[1756541421174,0.66,205.43,205.39,3.03517234]
[1756541421402,4.61663709,205.44,205.41,4.86831215]
[1756541421782,4.61663709,205.43,205.39,43.58859592]
[1756541422184,4.61663709,205.4,205.34,14.638074]
[1756541422487,4.61663709,205.41,205.36,4.61663709]
[1756541422706,4.61663709,205.41,205.37,3.03601448]
[1756541422883,4.61663709,205.41,205.36,5.29663709]
[1756541422884,4.61663709,205.41,205.38,3.03601448]
[1756541423222,26.66,205.45,205.39,8.33257184]
[1756541423422,5.27663709,205.45,205.39,10.16520023]
[1756541423581,4.61663709,205.42,205.37,4.86905806]
[1756541423787,4.61663709,205.41,205.38,3.03618602]
[1756541424002,5.27663709,205.42,205.37,4.86905806]
[1756541424211,5.27663709,205.42,205.38,3.03611884]
[1756541424516,26.0,205.46,205.35,0.68]
[1756541424517,4.61663709,205.4,205.35,4.86952827]
[1756541424695,0.66,205.44,205.38,4.61663709]
[1756541424898,5.27663709,205.44,205.39,4.61663709]
[1756541425097,0.66,205.46,205.39,5.29663709]
[1756541425289,4.61663709,205.45,205.4,4.61663709]
[1756541425484,0.66,205.44,205.4,4.86834964]
[1756541425682,5.27663709,205.44,205.4,4.86834964]
[1756541426215,4.61663709,205.44,205.4,4.86834964]
[1756541427215,0.66,205.43,205.4,4.86834964]
[1756541428112,4.61663709,205.41,205.34,0.68]
[1756541428296,4.61663709,205.41,205.35,19.25399709]
[1756541428701,4.55071075,205.41,205.35,19.25399709]
[1756541428897,4.55071075,205.41,205.35,4.61663709]
[1756541429100,4.55071075,205.41,205.36,4.86949746]
[1756541429302,5.21071075,205.41,205.36,4.86949746]
[1756541431219,4.61663709,205.39,205.36,4.86949746]
[1756541431404,5.33663709,205.4,205.36,4.86949746]
[1756541431611,4.61663709,205.41,205.36,4.86949746]
[1756541432013,5.33663709,205.41,205.36,4.86949746]
[1756541433025,4.61663709,205.38,205.33,0.03]
[1756541433404,0.72,205.37,205.33,0.03]
[1756541433740,0.72,205.37,205.34,4.86996932]
[1756541433896,4.61663709,205.39,205.34,4.86996932]
[1756541434103,5.33663709,205.39,205.34,4.86996932]
[1756541434723,5.33663709,205.39,205.34,9.48660641]
[1756541434920,0.72,205.43,205.36,4.61663709]
[1756541435114,4.61663709,205.41,205.36,4.61663709]
[1756541435320,0.72,205.4,205.36,4.61663709]
[1756541435517,0.72,205.39,205.34,21.66153579]
[1756541436400,0.72,205.39,205.34,22.37153579]
[1756541437018,4.61663709,205.4,205.34,21.66153579]
[1756541437208,4.61663709,205.4,205.36,4.86949746]
[1756541438425,4.61663709,205.4,205.36,5.57949746]
[1756541440427,4.61663709,205.38,205.34,4.86982485]
[1756541440627,4.61663709,205.37,205.34,4.86982485]
[1756541441312,4.61663709,205.35,205.33,0.03]
[1756541441806,4.61663709,205.34,205.33,0.03]
[1756541442429,5.33663709,205.34,205.33,0.03]
[1756541443127,0.72,205.34,205.33,0.03]
[1756541443439,5.33663709,205.34,205.33,0.03]
[1756541445447,18.46486812,205.37,205.33,0.03]
[1756541445617,4.61663709,205.36,205.33,0.74]
[1756541446125,4.61663709,205.36,205.33,0.03]
[1756541446836,4.61663709,205.35,205.33,0.03]
[1756541447228,38.64,205.38,205.33,0.03]
[1756541447431,4.61663709,205.36,205.33,0.03]
[1756541447825,5.33663709,205.36,205.33,0.03]
[1756541448924,4.61663709,205.35,205.33,0.03]
[1756541449946,4.61663709,205.36,205.33,0.03]
[1756541450746,0.72,205.37,205.33,0.03]
[1756541450954,4.61663709,205.36,205.33,0.03]
[1756541451627,5.33663709,205.35,205.33,0.03]
[1756541452534,5.33663709,205.34,205.33,0.03]
[1756541454430,126.93663709,205.39,205.33,0.74]
[1756541454431,127.65663709,205.39,205.33,0.74]
[1756541454631,43.21663709,205.38,205.33,5.35663709]
[1756541454862,43.21663709,205.38,205.34,0.71]
[1756541455428,43.21663709,205.38,205.35,4.86973459]
[1756541455634,4.61663709,205.37,205.35,4.86973459]
[1756541456363,38.6,205.38,205.35,5.57973459]
[1756541457639,0.06,205.41,205.36,5.32663709]
[1756541457856,0.06,205.41,205.37,0.71]
[1756541458168,0.06,205.41,205.38,0.71]
[1756541458972,0.06,205.41,205.36,5.32663709]
[1756541459145,0.06,205.41,205.37,0.71]
[1756541459336,4.67663709,205.41,205.37,0.71]
[1756541459536,4.67663709,205.41,205.33,0.03]
[1756541459537,4.61663709,205.38,205.33,0.03]
[1756541459743,38.58,205.38,205.33,0.03]
[1756541460055,4.61663709,205.35,205.33,4.90019582]
[1756541461667,5.31663709,205.34,205.33,0.03]
[1756541461959,14.29559401,205.37,205.33,0.03]
[1756541462131,4.61663709,205.34,205.33,0.03]
[1756541462660,153.69663709,205.41,205.33,0.74]
[1756541462856,4.61663709,205.38,205.33,0.74]
[1756541463169,4.61663709,205.37,205.33,0.03]
[1756541463338,4.61663709,205.35,205.33,0.03]
[1756541463539,4.61663709,205.34,205.33,0.03]
[1756541463741,5.31663709,205.34,205.33,0.03]
[1756541464864,4.61663709,205.34,205.33,0.03]
[1756541465939,5.31663709,205.34,205.33,0.03]
[1756541466840,23.52886819,205.34,205.33,0.03]
[1756541467040,23.52886819,205.34,205.31,0.03]
[1756541467041,26.14216157,205.32,205.31,0.03]
[1756541467266,0.14216157,205.31,205.3,0.03]
[1756541467461,10.07543575,205.31,205.3,0.03]
[1756541467770,13.35039921,205.31,205.3,0.03]
[1756541469467,18.22108256,205.31,205.3,0.03]
[1756541469972,14.9461191,205.31,205.3,0.03]
[1756541472371,0.14216157,205.29,205.28,0.03]
[1756541472550,13.73775558,205.25,205.23,0.03]
[1756541472745,57.75439267,205.25,205.23,0.03]
[1756541474268,62.62649985,205.25,205.23,0.03]
[1756541475376,58.00986276,205.25,205.23,0.03]
[1756541475681,62.62649985,205.25,205.23,0.03]
[1756541476181,57.75439267,205.25,205.23,0.03]
[1756541476471,57.05439267,205.25,205.23,0.03]
[1756541476677,131.6,205.28,205.24,0.74]
[1756541476869,4.61663709,205.25,205.24,0.03]
[1756541477865,18.9122311,205.25,205.24,0.03]
[1756541478258,23.92649985,205.25,205.24,0.03]
[1756541478451,23.92649985,205.25,205.21,0.03]
[1756541478452,39.73775558,205.24,205.21,0.03]
[1756541478672,0.14216157,205.21,205.2,0.03]
[1756541478866,0.14216157,205.21,205.18,0.03]
[1756541478867,13.73775558,205.2,205.18,0.03]
[1756541479080,26.0,205.16,205.12,0.03]
[1756541479273,26.14216157,205.13,205.12,0.03]
[1756541479469,26.14216157,205.13,205.1,0.03]
[1756541479470,0.14216157,205.12,205.1,0.03]
[1756541479759,62.34886819,205.11,205.1,0.03]
[1756541481152,53.11559401,205.11,205.1,0.03]
[1756541481360,60.52661841,205.11,205.1,0.03]
[1756541481652,38.82,205.11,205.1,0.03]
[1756541481856,46.2310244,205.11,205.1,0.74]
[1756541482060,7.4110244,205.11,205.1,0.74]
[1756541483079,7.4110244,205.11,205.1,5.6156704]
[1756541483273,7.4110244,205.11,205.1,0.74]
[1756541483469,7.4110244,205.11,205.1,5.6156704]
[1756541484788,157.6,205.15,205.1,5.6156704]
[1756541485004,131.6,205.15,205.11,8.1210244]
[1756541485284,38.76,205.19,205.12,8.1210244]
[1756541485488,7.4110244,205.17,205.13,0.71]
[1756541485660,0.7,205.25,205.14,7.4110244]
[1756541485863,7.4110244,205.2,205.15,0.71]
[1756541486094,7.4110244,205.19,205.16,0.71]
[1756541486469,7.4110244,205.19,205.17,0.71]
[1756541486877,7.4110244,205.19,205.17,5.58392639]
[1756541487191,7.4110244,205.2,205.18,0.71]
[1756541487391,46.1910244,205.22,205.19,0.71]
[1756541487771,7.4110244,205.2,205.17,4.87392639]
[1756541487969,7.4110244,205.2,205.18,0.71]
[1756541488499,46.1910244,205.22,205.19,0.71]
[1756541488701,7.4110244,205.21,205.19,0.71]
[1756541489172,7.4110244,205.21,205.19,5.5835119]
[1756541489675,46.1910244,205.22,205.19,5.5835119]
[1756541489985,46.1910244,205.22,205.17,12.28480527]
[1756541490183,7.4110244,205.2,205.17,4.87378087]
[1756541490493,7.4110244,205.2,205.17,5.58378087]
[1756541492296,7.4110244,205.19,205.14,0.66]
[1756541492494,7.4110244,205.17,205.14,0.66]
[1756541492803,7.4110244,205.16,205.11,0.66]
[1756541493109,7.4110244,205.16,205.12,0.66]
[1756541493402,131.6,205.21,205.15,7.4110244]
[1756541493571,131.6,205.21,205.17,7.4110244]
[1756541493904,131.6,205.21,205.18,0.66]
[1756541494306,139.0110244,205.21,205.16,12.94526889]
[1756541494502,139.0110244,205.21,205.17,0.66]
[1756541494891,131.6,205.21,205.17,0.66]
[1756541495292,139.6810244,205.21,205.16,4.87424449]
[1756541495476,132.27,205.21,205.15,4.87448208]
[1756541495677,33.4110244,205.16,205.1,0.03]
[1756541495903,7.4110244,205.11,205.1,0.03]
[1756541496091,7.4110244,205.12,205.1,4.90566645]
[1756541496802,26.0,205.16,205.11,0.66]
[1756541496978,33.4110244,205.16,205.1,12.31669085]
[1756541497177,7.4110244,205.15,205.11,0.66]
[1756541497378,7.4110244,205.15,205.12,0.66]
[1756541497594,7.4110244,205.15,205.13,4.87495734]
[1756541497990,26.0,205.16,205.13,4.87495734]
[1756541498195,7.4110244,205.16,205.13,5.53495734]
[1756541498403,52.35559401,205.19,205.14,0.66]
[1756541498706,7.4110244,205.17,205.14,0.66]
[1756541499081,7.4110244,205.16,205.13,4.87495734]
[1756541499903,7.4110244,205.16,205.12,4.875195]
[1756541500108,7.4110244,205.16,205.12,5.535195]
[1756541500784,7.4110244,205.17,205.13,0.66]
[1756541500984,7.4110244,205.18,205.14,0.66]
[1756541502111,7.4110244,205.19,205.15,0.66]
[1756541502414,7.4110244,205.19,205.15,5.534465]
[1756541504210,7.4110244,205.18,205.15,5.534465]
[1756541504409,7.4110244,205.16,205.1,0.03]
[1756541504714,0.67,205.17,205.1,0.03]
[1756541504715,7.4110244,205.13,205.1,0.03]
[1756541504899,7.4110244,205.14,205.1,5.56561162]
[1756541505307,7.4110244,205.13,205.1,4.90561162]
[1756541505824,7.4110244,205.12,205.1,0.03]
[1756541505992,7.4110244,205.11,205.1,0.03]
[1756541506922,8.0810244,205.12,205.1,0.03]
[1756541509497,0.67,205.12,205.1,0.03]
[1756541511220,3.63559786,205.11,205.1,0.03]
[1756541511522,0.67,205.12,205.1,0.03]
[1756541511719,7.4110244,205.13,205.1,0.03]
[1756541511908,3.63553949,205.12,205.1,0.03]
[1756541512110,8.0810244,205.13,205.1,0.03]
[1756541512306,7.4110244,205.12,205.1,0.03]
[1756541513028,0.67,205.18,205.11,8.0710244]
[1756541513244,7.4110244,205.16,205.11,8.0710244]
[1756541513530,7.4110244,205.16,205.12,0.66]
[1756541513730,26.0,205.17,205.12,0.66]
[1756541513931,7.4110244,205.16,205.12,0.66]
[1756541514304,33.4110244,205.17,205.13,4.87495734]
[1756541514505,0.67,205.19,205.14,0.66]
[1756541514805,0.67,205.19,205.14,8.0710244]
[1756541514806,8.0810244,205.19,205.14,8.0710244]
[1756541515834,8.0810244,205.19,205.15,4.87448208]
[1756541516128,8.0810244,205.18,205.14,0.66]
[1756541516341,8.0810244,205.18,205.14,5.53468509]
[1756541517417,8.0810244,205.18,205.14,0.66]
[1756541518127,7.4110244,205.19,205.14,0.66]
[1756541518329,7.4110244,205.18,205.14,5.53467823]
[1756541519511,8.0810244,205.18,205.13,12.2859789]
[1756541519707,7.4110244,205.14,205.1,0.03]
[1756541520011,7.4110244,205.13,205.1,0.03]
[1756541520351,8.0810244,205.13,205.1,0.03]
[1756541520505,0.67,205.13,205.1,0.03]
[1756541520845,0.67,205.15,205.1,0.03]
[1756541521014,0.71,205.12,205.1,0.03]
[1756541521721,5.33863859,205.11,205.1,0.03]
[1756541523322,8.11782882,205.11,205.1,0.03]
[1756541523842,26.71,205.16,205.1,0.7]
[1756541524061,7.40782882,205.13,205.1,0.03]
[1756541524636,8.11782882,205.13,205.1,0.03]
[1756541525649,7.40782882,205.11,205.1,0.03]
[1756541526549,8.11782882,205.11,205.1,0.03]
[1756541526919,14.30559401,205.14,205.1,0.03]
[1756541527141,13.59559401,205.13,205.1,0.03]
[1756541527344,14.30559401,205.13,205.1,0.03]
[1756541527620,0.71,205.12,205.1,0.03]
[1756541527825,7.40782882,205.14,205.1,0.03]
[1756541528133,132.31,205.15,205.1,8.10782882]
[1756541528448,132.31,205.15,205.11,7.40782882]
[1756541528620,0.06,205.2,205.14,7.40782882]
[1756541528823,0.06,205.2,205.18,7.40782882]
[1756541529253,0.06,205.2,205.18,8.07782882]
[1756541529548,0.06,205.2,205.18,12.95159819]
[1756541531647,0.06,205.2,205.18,4.87376937]
[1756541531853,0.06,205.2,205.16,7.40782882]
[1756541531854,0.77,205.19,205.16,7.40782882]
[1756541532147,0.06,205.19,205.16,7.40782882]
[1756541532338,0.06,205.19,205.17,7.40782882]
[1756541532647,0.77,205.19,205.16,7.40782882]
[1756541532827,0.77,205.19,205.16,12.28197042]
[1756541533350,0.77,205.19,205.16,4.8741416]
[1756541533835,0.06,205.19,205.16,7.40782882]
[1756541534150,0.06,205.19,205.17,7.40782882]
[1756541535948,0.06,205.19,205.17,12.28180643]
[1756541536361,0.06,205.19,205.18,7.40782882]
[1756541536536,0.06,205.19,205.18,8.07782882]
[1756541539348,0.06,205.19,205.18,12.95159819]
[1756541539570,0.06,205.19,205.18,14.90486619]
[1756541539865,0.06,205.19,205.18,12.95159819]
[1756541542057,1e-08,205.25,205.22,26.0]
[1756541542231,1e-08,205.25,205.24,7.40782882]
[1756541542766,1e-08,205.25,205.24,10.03052482]
[1756541544562,1e-08,205.25,205.24,14.90286939]
[1756541546130,0.06,205.31,205.24,27.22589239]
[1756541546359,0.06,205.31,205.3,7.40782882]
[1756541546547,0.06,205.31,205.3,50.91874942]
[1756541547338,0.06,205.31,205.3,48.12949352]
[1756541547871,0.06,205.31,205.3,4.8709206]
[1756541548047,0.77,205.31,205.28,6.82349288]
[1756541548248,0.71,205.3,205.28,45.44349288]
[1756541548659,0.71,205.3,205.28,4.87117788]
[1756541549772,0.71,205.29,205.27,43.47163248]
[1756541549979,4.67857292,205.31,205.27,43.47163248]
[1756541549980,0.71,205.28,205.27,43.47163248]
[1756541550181,5.32857292,205.28,205.23,4.618573]
[1756541550348,0.71,205.27,205.22,4.87279896]
[1756541550540,4.61857292,205.25,205.22,4.87279896]
[1756541550742,4.61857292,205.26,205.21,4.61857292]
[1756541550943,5.32857292,205.26,205.21,5.28857292]
[1756541551674,4.61857292,205.25,205.21,0.67]
[1756541552037,4.61857292,205.25,205.22,4.87281941]
[1756541552860,4.61857292,205.24,205.22,4.87281941]
[1756541553755,0.71,205.23,205.2,4.87311189]
[1756541553962,5.32857292,205.23,205.2,4.87311189]
[1756541554457,4.61857292,205.22,205.2,4.87311189]
[1756541556250,5.32857292,205.21,205.16,14.650225]
[1756541556483,0.06,205.25,205.14,38.62]
[1756541556484,4.61857292,205.17,205.14,38.62]
[1756541556672,4.61857292,205.17,205.16,26.0]
[1756541556857,4.61857292,205.18,205.17,26.0]
[1756541558555,0.71,205.2,205.17,26.0]
[1756541558757,4.61857292,205.18,205.17,26.0]
[1756541559469,4.61857292,205.18,205.15,4.87426948]
[1756541559658,4.61857292,205.18,205.15,5.55426948]
[1756541560473,4.61857292,205.19,205.15,5.55426948]
[1756541561186,0.71,205.24,205.16,5.29857292]
[1756541561356,4.61857292,205.2,205.17,38.62]
[1756541561566,4.61857292,205.19,205.17,38.6]
[1756541561886,0.71,205.2,205.17,38.6]
[1756541561887,4.61857292,205.2,205.17,38.6]
[1756541562063,4.61857292,205.2,205.17,39.28]
[1756541562783,4.61857292,205.2,205.18,4.87376937]
[1756541563887,4.61857292,205.21,205.18,4.87376937]
[1756541564185,30.61857292,205.21,205.18,4.87376937]
[1756541564373,4.61857292,205.22,205.19,0.68]
[1756541564761,4.61857292,205.22,205.18,4.87376937]
[1756541564961,4.61857292,205.21,205.18,5.55376937]
[1756541565356,4.61857292,205.21,205.18,4.87376937]
[1756541566086,4.61857292,205.21,205.18,5.55376937]
[1756541567185,4.61857292,205.22,205.18,5.55376937]
[1756541568574,4.61857292,205.21,205.18,5.55376937]
[1756541569091,4.61857292,205.2,205.18,5.55376937]
[1756541570270,5.32857292,205.2,205.17,38.52]
[1756541570469,4.61857292,205.21,205.17,38.52]
[1756541570672,5.32857292,205.21,205.17,38.52]
[1756541570874,5.32857292,205.21,205.17,39.2]
[1756541571566,5.32857292,205.21,205.18,4.87376937]
[1756541572488,131.6,205.24,205.18,4.87376937]
[1756541572675,4.61857292,205.2,205.18,4.87376937]
[1756541573971,132.31,205.23,205.18,4.87376937]
[1756541573972,4.61857292,205.21,205.18,4.87376937]
[1756541574378,5.32857292,205.21,205.18,4.87376937]
[1756541575388,4.61857292,205.2,205.18,4.87376937]
[1756541576968,4.61857292,205.2,205.18,43.33376937]
[1756541578171,4.61857292,205.2,205.18,43.29376937]
[1756541578580,5.32857292,205.21,205.18,43.29376937]
[1756541578784,4.61857292,205.2,205.18,43.29376937]
[1756541579297,4.61857292,205.2,205.18,4.87376937]
[1756541579487,4.61857292,205.2,205.18,43.29376937]
[1756541579889,4.61857292,205.2,205.17,4.90400692]
[1756541580087,4.61857292,205.2,205.18,38.42]
[1756541580775,4.61857292,205.2,205.17,5.58400692]
[1756541580977,4.61857292,205.2,205.18,38.4]
[1756541581474,4.61857292,205.2,205.17,5.58400692]
[1756541581707,4.61857292,205.2,205.19,4.87353184]
[1756541581880,0.71,205.21,205.19,4.87353184]
[1756541582079,4.61857292,205.2,205.19,4.87353184]
[1756541584196,4.61857292,205.2,205.18,4.87376937]
[1756541584383,4.61857292,205.2,205.18,43.23376937]